[Event "Titled Tuesday Blitz January 18 2022"]
[White "Cremisi, Daniel"]
[Black "Nesterov, Arseniy"]
[WhiteFideId "2089882"]
[BlackFideId "24198455"]
[WhiteElo "2172"]
[BlackElo "2489"]
[Result "0-1"]
[Round "01"]
[TimeControl "180+1"]
[Date "2022.01.18"]
[WhiteClock "0:00:08"]
[BlackClock "0:00:08"]

1. d4 {[%clk 0:03:00]}  d5 {[%clk 0:02:59]} 2. c4 {[%clk 0:02:59]}  e6 {[%clk 0:02:59]} 3. Nc3 {[%clk 0:02:59]}  c5 {[%clk 0:02:57]} 4. cxd5 {[%clk 0:02:59]}  exd5 {[%clk 0:02:57]} 5. Nf3 {[%clk 0:02:59]}  Nc6 {[%clk 0:02:57]} 6. g3 {[%clk 0:03:00]}  Nf6 {[%clk 0:02:56]} 7. Bg2 {[%clk 0:03:00]}  cxd4 {[%clk 0:02:56]} 8. Nxd4 {[%clk 0:03:00]}  Bc5 {[%clk 0:02:57]} 9. Nb3 {[%clk 0:02:54]}  Bb6 {[%clk 0:02:57]} 10. O-O {[%clk 0:02:49]}  d4 {[%clk 0:02:55]} 11. Ne4 {[%clk 0:02:48]}  Nxe4 {[%clk 0:02:51]} 12. Bxe4 {[%clk 0:02:49]}  O-O {[%clk 0:02:47]} 13. Bd2 {[%clk 0:02:46]}  Re8 {[%clk 0:02:46]} 14. Bg2 {[%clk 0:02:34]}  Bg4 {[%clk 0:02:43]} 15. f3 {[%clk 0:02:33]}  d3+ {[%clk 0:02:21]} 16. e3 {[%clk 0:02:30]}  Bh5 {[%clk 0:02:21]} 17. Re1 {[%clk 0:02:25]}  Ne5 {[%clk 0:02:13]} 18. g4 {[%clk 0:02:25]}  Bg6 {[%clk 0:02:11]} 19. f4 {[%clk 0:02:15]}  Nc4 {[%clk 0:02:11]} 20. f5 {[%clk 0:02:14]}  Nxe3 {[%clk 0:01:48]} 21. Bxe3 {[%clk 0:02:13]}  Bxe3+ {[%clk 0:01:49]} 22. Kh1 {[%clk 0:01:56]}  d2 {[%clk 0:01:32]} 23. Rf1 {[%clk 0:01:50]}  Qd6 {[%clk 0:00:51]} 24. fxg6 {[%clk 0:01:48]}  hxg6 {[%clk 0:00:51]} 25. Qf3 {[%clk 0:01:47]}  Re7 {[%clk 0:00:49]} 26. Rad1 {[%clk 0:01:42]}  Rd8 {[%clk 0:00:41]} 27. Qg3 {[%clk 0:01:26]}  Qxg3 {[%clk 0:00:34]} 28. hxg3 {[%clk 0:01:27]}  Bg5 {[%clk 0:00:35]} 29. Bf3 {[%clk 0:01:22]}  b6 {[%clk 0:00:35]} 30. Kg2 {[%clk 0:01:22]}  a5 {[%clk 0:00:33]} 31. Rf2 {[%clk 0:01:20]}  Red7 {[%clk 0:00:29]} 32. Bc6 {[%clk 0:01:06]}  Rd6 {[%clk 0:00:28]} 33. Bb5 {[%clk 0:01:06]}  f6 {[%clk 0:00:23]} 34. Bc4+ {[%clk 0:01:00]}  Kf8 {[%clk 0:00:23]} 35. Re2 {[%clk 0:00:56]}  a4 {[%clk 0:00:22]} 36. Rh1 {[%clk 0:00:51]}  Bh6 {[%clk 0:00:22]} 37. g5 {[%clk 0:00:43]}  d1=Q {[%clk 0:00:17]} 38. gxh6 {[%clk 0:00:15]}  gxh6 {[%clk 0:00:12]} 39. Rxd1 {[%clk 0:00:13]}  Rxd1 {[%clk 0:00:13]} 40. Rf2 {[%clk 0:00:12]}  f5 {[%clk 0:00:07]} 41. Be2 {[%clk 0:00:08]}  axb3 {[%clk 0:00:07]} 42. Bxd1 {[%clk 0:00:06]}  bxa2 {[%clk 0:00:08]} 43. g4 {[%clk 0:00:07]}  Rxd1 {[%clk 0:00:07]} 44. gxf5 {[%clk 0:00:08]}  a1=Q {[%clk 0:00:08]} 45. fxg6+ {[%clk 0:00:08]}  Kg7 {[%clk 0:00:08]} 0-1


[Site "https://www.chess.com"]

[Event "Titled Tuesday Blitz January 18 2022"]
[White "Dauner, Benedikt"]
[Black "Eljanov, Pavel"]
[WhiteFideId "16225899"]
[BlackFideId "14102951"]
[WhiteElo "2230"]
[BlackElo "2601"]
[Result "1-0"]
[Round "01"]
[TimeControl "180+1"]
[Date "2022.01.18"]
[WhiteClock "0:00:19"]
[BlackClock "0:00:35"]

1. d4 {[%clk 0:03:00]}  Nf6 {[%clk 0:02:59]} 2. Nf3 {[%clk 0:03:01]}  d5 {[%clk 0:02:58]} 3. Bf4 {[%clk 0:03:00]}  c5 {[%clk 0:02:57]} 4. e3 {[%clk 0:02:52]}  Nc6 {[%clk 0:02:56]} 5. Nbd2 {[%clk 0:02:52]}  cxd4 {[%clk 0:02:55]} 6. exd4 {[%clk 0:02:51]}  Bf5 {[%clk 0:02:52]} 7. c3 {[%clk 0:02:45]}  e6 {[%clk 0:02:52]} 8. Be2 {[%clk 0:02:41]}  Bd6 {[%clk 0:02:52]} 9. Bxd6 {[%clk 0:02:34]}  Qxd6 {[%clk 0:02:53]} 10. O-O {[%clk 0:02:33]}  O-O {[%clk 0:02:53]} 11. Nh4 {[%clk 0:02:30]}  Rfe8 {[%clk 0:02:40]} 12. Nxf5 {[%clk 0:02:21]}  exf5 {[%clk 0:02:41]} 13. Bd3 {[%clk 0:02:21]}  Ne4 {[%clk 0:02:36]} 14. f3 {[%clk 0:02:15]}  Nxd2 {[%clk 0:02:30]} 15. Qxd2 {[%clk 0:02:16]}  f4 {[%clk 0:02:17]} 16. Rae1 {[%clk 0:02:15]}  g5 {[%clk 0:02:10]} 17. Bb1 {[%clk 0:01:54]}  h6 {[%clk 0:01:57]} 18. Qd3 {[%clk 0:01:52]}  Kf8 {[%clk 0:01:57]} 19. Qf5 {[%clk 0:01:42]}  Rad8 {[%clk 0:01:50]} 20. Bc2 {[%clk 0:01:38]}  Ne7 {[%clk 0:01:43]} 21. Qd3 {[%clk 0:01:19]}  Ng8 {[%clk 0:01:28]} 22. Ba4 {[%clk 0:01:17]}  Rxe1 {[%clk 0:01:27]} 23. Rxe1 {[%clk 0:01:18]}  Nf6 {[%clk 0:01:27]} 24. Qf5 {[%clk 0:01:10]}  Kg7 {[%clk 0:01:24]} 25. h4 {[%clk 0:01:05]}  gxh4 {[%clk 0:01:19]} 26. Re5 {[%clk 0:01:04]}  Qa6 {[%clk 0:01:00]} 27. Bb3 {[%clk 0:00:48]}  h3 {[%clk 0:00:36]} 28. Qxh3 {[%clk 0:00:46]}  Qd3 {[%clk 0:00:36]} 29. Qh4 {[%clk 0:00:41]}  Qd2 {[%clk 0:00:36]} 30. Rf5 {[%clk 0:00:34]}  Rd6 {[%clk 0:00:36]} 31. Qxf4 {[%clk 0:00:31]}  Qe1+ {[%clk 0:00:34]} 32. Kh2 {[%clk 0:00:29]}  Re6 {[%clk 0:00:35]} 33. Bxd5 {[%clk 0:00:21]}  Nxd5 {[%clk 0:00:35]} 34. Rxf7+ {[%clk 0:00:19]} 1-0


[Site "https://www.chess.com"]

[Event "Titled Tuesday Blitz January 18 2022"]
[White "Deac, Bogdan-Daniel"]
[Black "Kislov, Oleg"]
[WhiteFideId "1226380"]
[BlackFideId "13503774"]
[WhiteElo "2646"]
[BlackElo "2252"]
[Result "1-0"]
[Round "01"]
[TimeControl "180+1"]
[Date "2022.01.18"]
[WhiteClock "0:01:40"]
[BlackClock "0:01:14"]

1. e4 {[%clk 0:03:00]}  e6 {[%clk 0:02:59]} 2. d4 {[%clk 0:02:52]}  d5 {[%clk 0:02:57]} 3. Nc3 {[%clk 0:02:52]}  Nf6 {[%clk 0:02:56]} 4. e5 {[%clk 0:02:42]}  Nfd7 {[%clk 0:02:56]} 5. f4 {[%clk 0:02:43]}  c5 {[%clk 0:02:56]} 6. Nf3 {[%clk 0:02:43]}  Nc6 {[%clk 0:02:55]} 7. Be3 {[%clk 0:02:44]}  a6 {[%clk 0:02:47]} 8. Qd2 {[%clk 0:02:43]}  b5 {[%clk 0:02:46]} 9. dxc5 {[%clk 0:02:43]}  Bxc5 {[%clk 0:02:45]} 10. Bd3 {[%clk 0:02:43]}  Qb6 {[%clk 0:02:43]} 11. Bf2 {[%clk 0:02:43]}  b4 {[%clk 0:02:36]} 12. Na4 {[%clk 0:02:40]}  Bxf2+ {[%clk 0:02:36]} 13. Qxf2 {[%clk 0:02:41]}  Qxf2+ {[%clk 0:02:34]} 14. Kxf2 {[%clk 0:02:42]}  a5 {[%clk 0:02:31]} 15. Bb5 {[%clk 0:02:29]}  Na7 {[%clk 0:02:07]} 16. Be2 {[%clk 0:02:20]}  Bb7 {[%clk 0:01:59]} 17. Nd4 {[%clk 0:02:20]}  Ke7 {[%clk 0:01:57]} 18. c3 {[%clk 0:02:04]}  Nc6 {[%clk 0:01:32]} 19. Nb5 {[%clk 0:01:48]}  f6 {[%clk 0:01:21]} 20. exf6+ {[%clk 0:01:45]}  gxf6 {[%clk 0:01:14]} 21. f5 {[%clk 0:01:40]} 1-0


[Site "https://www.chess.com"]

[Event "Titled Tuesday Blitz January 18 2022"]
[White "Donchenko, Alexander"]
[Black "Astafurov, Arseniy"]
[WhiteFideId "24603295"]
[BlackFideId "24175218"]
[WhiteElo "2539"]
[BlackElo "2163"]
[Result "1/2-1/2"]
[Round "01"]
[TimeControl "180+1"]
[Date "2022.01.18"]
[WhiteClock "0:00:25"]
[BlackClock "0:00:07"]

1. d4 {[%clk 0:02:46]}  Nf6 {[%clk 0:02:59]} 2. c4 {[%clk 0:02:46]}  c6 {[%clk 0:03:00]} 3. Nf3 {[%clk 0:02:43]}  d5 {[%clk 0:03:01]} 4. e3 {[%clk 0:02:43]}  a6 {[%clk 0:03:01]} 5. b3 {[%clk 0:02:42]}  e6 {[%clk 0:03:00]} 6. Bd3 {[%clk 0:02:42]}  c5 {[%clk 0:02:57]} 7. cxd5 {[%clk 0:02:40]}  exd5 {[%clk 0:02:52]} 8. O-O {[%clk 0:02:39]}  Nc6 {[%clk 0:02:52]} 9. Bb2 {[%clk 0:02:39]}  Be7 {[%clk 0:02:51]} 10. dxc5 {[%clk 0:02:39]}  Bxc5 {[%clk 0:02:52]} 11. Nbd2 {[%clk 0:02:37]}  O-O {[%clk 0:02:51]} 12. Rc1 {[%clk 0:02:37]}  Ba7 {[%clk 0:02:45]} 13. Ne5 {[%clk 0:02:31]}  Nxe5 {[%clk 0:01:57]} 14. Bxe5 {[%clk 0:02:32]}  d4 {[%clk 0:01:55]} 15. exd4 {[%clk 0:02:19]}  Bxd4 {[%clk 0:01:55]} 16. Nf3 {[%clk 0:02:18]}  Bxe5 {[%clk 0:01:43]} 17. Nxe5 {[%clk 0:02:19]}  Be6 {[%clk 0:01:42]} 18. Qf3 {[%clk 0:02:16]}  Qa5 {[%clk 0:01:37]} 19. Nc4 {[%clk 0:02:08]}  Qb4 {[%clk 0:01:05]} 20. Rfe1 {[%clk 0:02:05]}  Rad8 {[%clk 0:01:04]} 21. h3 {[%clk 0:02:00]}  Bd5 {[%clk 0:00:55]} 22. Qg3 {[%clk 0:01:58]}  Rfe8 {[%clk 0:00:48]} 23. Rxe8+ {[%clk 0:01:54]}  Rxe8 {[%clk 0:00:49]} 24. Kh2 {[%clk 0:01:47]}  b5 {[%clk 0:00:45]} 25. Nd6 {[%clk 0:01:44]}  Nh5 {[%clk 0:00:35]} 26. Qg5 {[%clk 0:01:22]}  Qxd6+ {[%clk 0:00:34]} 27. g3 {[%clk 0:01:22]}  Nf6 {[%clk 0:00:31]} 28. Bf5 {[%clk 0:01:16]}  Qe5 {[%clk 0:00:29]} 29. Rc8 {[%clk 0:01:15]}  Kf8 {[%clk 0:00:24]} 30. Rxe8+ {[%clk 0:01:12]}  Qxe8 {[%clk 0:00:24]} 31. Qd2 {[%clk 0:01:10]}  Qe5 {[%clk 0:00:24]} 32. Bb1 {[%clk 0:01:07]}  g6 {[%clk 0:00:24]} 33. b4 {[%clk 0:01:04]}  Kg7 {[%clk 0:00:24]} 34. a3 {[%clk 0:01:04]}  Qa1 {[%clk 0:00:21]} 35. Qd1 {[%clk 0:00:47]}  Qxa3 {[%clk 0:00:18]} 36. Qd4 {[%clk 0:00:45]}  Qc1 {[%clk 0:00:17]} 37. g4 {[%clk 0:00:44]}  Qxb1 {[%clk 0:00:17]} 38. g5 {[%clk 0:00:45]}  Qe4 {[%clk 0:00:09]} 39. Qxf6+ {[%clk 0:00:41]}  Kg8 {[%clk 0:00:09]} 40. Qd8+ {[%clk 0:00:41]}  Kg7 {[%clk 0:00:08]} 41. Qf6+ {[%clk 0:00:42]}  Kf8 {[%clk 0:00:09]} 42. Qd8+ {[%clk 0:00:37]}  Qe8 {[%clk 0:00:09]} 43. Qxd5 {[%clk 0:00:36]}  Qe7 {[%clk 0:00:08]} 44. Qa8+ {[%clk 0:00:26]}  Kg7 {[%clk 0:00:07]} 45. Qxa6 {[%clk 0:00:27]}  Qxg5 {[%clk 0:00:06]} 46. Qd6 {[%clk 0:00:27]}  Qf6 {[%clk 0:00:05]} 47. Qc5 {[%clk 0:00:26]}  Qf5 {[%clk 0:00:03]} 48. Qd4+ {[%clk 0:00:24]}  Kg8 {[%clk 0:00:03]} 49. Qd8+ {[%clk 0:00:24]}  Kg7 {[%clk 0:00:04]} 50. Qd4+ {[%clk 0:00:25]}  Kh6 {[%clk 0:00:04]} 51. Qh4+ {[%clk 0:00:24]}  Qh5 {[%clk 0:00:05]} 52. Qf4+ {[%clk 0:00:23]}  Kg7 {[%clk 0:00:05]} 53. Qd4+ {[%clk 0:00:23]}  Kg8 {[%clk 0:00:05]} 54. Qd8+ {[%clk 0:00:23]}  Kg7 {[%clk 0:00:06]} 55. Qd4+ {[%clk 0:00:24]}  Kf8 {[%clk 0:00:07]} 56. Qd8+ {[%clk 0:00:24]}  Kg7 {[%clk 0:00:07]} 57. Qd4+ {[%clk 0:00:25]} 1/2-1/2


[Site "https://www.chess.com"]

[Event "Titled Tuesday Blitz January 18 2022"]
[White "Estrada Nieto, Julian"]
[Black "Obolenskikh, Dmitry"]
[WhiteFideId "5101018"]
[BlackFideId "4156013"]
[WhiteElo "2246"]
[BlackElo "2512"]
[Result "0-1"]
[Round "01"]
[TimeControl "180+1"]
[Date "2022.01.18"]
[WhiteClock "0:00:03"]
[BlackClock "0:00:14"]

1. e4 {[%clk 0:03:00]}  e5 {[%clk 0:02:59]} 2. Nf3 {[%clk 0:03:01]}  Nc6 {[%clk 0:02:59]} 3. Bb5 {[%clk 0:03:01]}  a6 {[%clk 0:02:59]} 4. Ba4 {[%clk 0:03:01]}  Nf6 {[%clk 0:02:59]} 5. O-O {[%clk 0:03:02]}  Be7 {[%clk 0:02:58]} 6. Re1 {[%clk 0:03:02]}  b5 {[%clk 0:02:57]} 7. Bb3 {[%clk 0:03:02]}  d6 {[%clk 0:02:58]} 8. c3 {[%clk 0:03:02]}  O-O {[%clk 0:02:58]} 9. h3 {[%clk 0:03:02]}  Nb8 {[%clk 0:02:57]} 10. d4 {[%clk 0:03:00]}  Nbd7 {[%clk 0:02:58]} 11. Nbd2 {[%clk 0:03:00]}  Bb7 {[%clk 0:02:57]} 12. Bc2 {[%clk 0:02:56]}  Re8 {[%clk 0:02:57]} 13. Bd3 {[%clk 0:02:46]}  Bf8 {[%clk 0:02:55]} 14. a4 {[%clk 0:02:45]}  c6 {[%clk 0:02:55]} 15. Qc2 {[%clk 0:02:44]}  g6 {[%clk 0:02:51]} 16. b3 {[%clk 0:02:42]}  Qc7 {[%clk 0:02:50]} 17. Bb2 {[%clk 0:02:41]}  Nh5 {[%clk 0:02:48]} 18. Rad1 {[%clk 0:02:40]}  Rad8 {[%clk 0:02:44]} 19. Bf1 {[%clk 0:02:39]}  Nf4 {[%clk 0:02:40]} 20. g3 {[%clk 0:02:28]}  Ne6 {[%clk 0:02:40]} 21. h4 {[%clk 0:02:28]}  Bg7 {[%clk 0:02:39]} 22. Bh3 {[%clk 0:02:01]}  Qb6 {[%clk 0:02:36]} 23. dxe5 {[%clk 0:01:54]}  dxe5 {[%clk 0:02:34]} 24. c4 {[%clk 0:01:50]}  bxa4 {[%clk 0:02:28]} 25. bxa4 {[%clk 0:01:47]}  c5 {[%clk 0:02:26]} 26. Bxe6 {[%clk 0:01:30]}  Qxe6 {[%clk 0:02:21]} 27. Bc3 {[%clk 0:01:22]}  Nb8 {[%clk 0:02:19]} 28. Qb2 {[%clk 0:01:08]}  Bc6 {[%clk 0:02:02]} 29. a5 {[%clk 0:01:03]}  f6 {[%clk 0:02:02]} 30. Qa3 {[%clk 0:00:57]}  Bf8 {[%clk 0:01:58]} 31. Rb1 {[%clk 0:00:36]}  Rd3 {[%clk 0:01:51]} 32. Rec1 {[%clk 0:00:35]}  Qg4 {[%clk 0:01:44]} 33. Ne1 {[%clk 0:00:33]}  Rd7 {[%clk 0:01:24]} 34. Rb6 {[%clk 0:00:23]}  Qe2 {[%clk 0:01:14]} 35. Nef3 {[%clk 0:00:17]}  Qd3 {[%clk 0:00:54]} 36. Qb2 {[%clk 0:00:13]}  Qd6 {[%clk 0:00:40]} 37. Rb1 {[%clk 0:00:12]}  Rdd8 {[%clk 0:00:38]} 38. Nb3 {[%clk 0:00:10]}  Qc7 {[%clk 0:00:34]} 39. Nbd2 {[%clk 0:00:10]}  Nd7 {[%clk 0:00:30]} 40. Rxa6 {[%clk 0:00:09]}  Rb8 {[%clk 0:00:29]} 41. Rb6 {[%clk 0:00:08]}  Nxb6 {[%clk 0:00:29]} 42. axb6 {[%clk 0:00:08]}  Qb7 {[%clk 0:00:29]} 43. Ba5 {[%clk 0:00:08]}  Ra8 {[%clk 0:00:26]} 44. Nb3 {[%clk 0:00:07]}  Bxe4 {[%clk 0:00:25]} 45. Nfd2 {[%clk 0:00:08]}  Bxb1 {[%clk 0:00:24]} 46. Qxb1 {[%clk 0:00:07]}  f5 {[%clk 0:00:22]} 47. Nf1 {[%clk 0:00:07]}  Ra6 {[%clk 0:00:20]} 48. Ne3 {[%clk 0:00:06]}  Rxb6 {[%clk 0:00:20]} 49. Bxb6 {[%clk 0:00:04]}  Qxb6 {[%clk 0:00:21]} 50. Nd5 {[%clk 0:00:04]}  Qc6 {[%clk 0:00:18]} 51. Qd3 {[%clk 0:00:05]}  e4 {[%clk 0:00:18]} 52. Qc3 {[%clk 0:00:05]}  Bg7 {[%clk 0:00:18]} 53. Qa5 {[%clk 0:00:05]}  Kh8 {[%clk 0:00:16]} 54. Qa7 {[%clk 0:00:05]}  Bd4 {[%clk 0:00:16]} 55. Na5 {[%clk 0:00:06]}  Qe6 {[%clk 0:00:14]} 56. Nf4 {[%clk 0:00:05]}  Qe7 {[%clk 0:00:13]} 57. Qa6 {[%clk 0:00:04]}  e3 {[%clk 0:00:13]} 58. fxe3 {[%clk 0:00:03]}  Qxe3+ {[%clk 0:00:13]} 59. Kg2 {[%clk 0:00:04]}  Qg1+ {[%clk 0:00:13]} 60. Kh3 {[%clk 0:00:03]}  Qh1# {[%clk 0:00:14]} 0-1


[Site "https://www.chess.com"]

[Event "Titled Tuesday Blitz January 18 2022"]
[White "Fawzy, Adham"]
[Black "Jeet, Jain"]
[WhiteFideId "10613129"]
[BlackFideId "5073022"]
[WhiteElo "2510"]
[BlackElo "2085"]
[Result "1-0"]
[Round "01"]
[TimeControl "180+1"]
[Date "2022.01.18"]
[WhiteClock "0:00:33"]
[BlackClock "0:00:05"]

1. e4 {[%clk 0:03:00]}  e5 {[%clk 0:02:56]} 2. Nf3 {[%clk 0:03:00]}  Nc6 {[%clk 0:02:56]} 3. d4 {[%clk 0:03:01]}  exd4 {[%clk 0:02:57]} 4. Bc4 {[%clk 0:03:02]}  Nf6 {[%clk 0:02:56]} 5. Ng5 {[%clk 0:03:02]}  Ne5 {[%clk 0:02:38]} 6. Bb3 {[%clk 0:03:01]}  d5 {[%clk 0:02:17]} 7. exd5 {[%clk 0:02:57]}  Bc5 {[%clk 0:01:58]} 8. O-O {[%clk 0:02:43]}  O-O {[%clk 0:01:58]} 9. Re1 {[%clk 0:02:43]}  Ng6 {[%clk 0:01:56]} 10. c4 {[%clk 0:02:36]}  dxc3 {[%clk 0:01:53]} 11. Nxc3 {[%clk 0:02:36]}  Bg4 {[%clk 0:01:48]} 12. Qd3 {[%clk 0:02:29]}  Re8 {[%clk 0:01:42]} 13. Bd2 {[%clk 0:02:29]}  Qd7 {[%clk 0:01:31]} 14. Nge4 {[%clk 0:02:19]}  Nxe4 {[%clk 0:01:30]} 15. Nxe4 {[%clk 0:02:20]}  Bb6 {[%clk 0:01:29]} 16. d6 {[%clk 0:02:05]}  cxd6 {[%clk 0:01:27]} 17. Nxd6 {[%clk 0:02:02]}  Rxe1+ {[%clk 0:01:25]} 18. Rxe1 {[%clk 0:02:03]}  Rf8 {[%clk 0:01:15]} 19. Bb4 {[%clk 0:01:55]}  a5 {[%clk 0:01:07]} 20. Ba3 {[%clk 0:01:55]}  Be6 {[%clk 0:01:00]} 21. Qe4 {[%clk 0:01:33]}  Bxb3 {[%clk 0:00:47]} 22. axb3 {[%clk 0:01:34]}  Rb8 {[%clk 0:00:45]} 23. Nxb7 {[%clk 0:01:19]}  h6 {[%clk 0:00:26]} 24. Nd6 {[%clk 0:01:09]}  Bc7 {[%clk 0:00:27]} 25. Nc4 {[%clk 0:00:41]}  Rxb3 {[%clk 0:00:26]} 26. Qe8+ {[%clk 0:00:41]}  Qxe8 {[%clk 0:00:26]} 27. Rxe8+ {[%clk 0:00:42]}  Kh7 {[%clk 0:00:26]} 28. g3 {[%clk 0:00:43]}  Rb5 {[%clk 0:00:21]} 29. Rc8 {[%clk 0:00:40]}  Be5 {[%clk 0:00:20]} 30. f4 {[%clk 0:00:38]}  Bd4+ {[%clk 0:00:20]} 31. Kf1 {[%clk 0:00:39]}  h5 {[%clk 0:00:06]} 32. Ra8 {[%clk 0:00:33]}  Bb6 {[%clk 0:00:05]} 33. Rb8 {[%clk 0:00:33]} 1-0


[Site "https://www.chess.com"]

[Event "Titled Tuesday Blitz January 18 2022"]
[White "Grigorjev, Iljya"]
[Black "Lucas, Arthur"]
[WhiteFideId "24159565"]
[BlackFideId "26093073"]
[WhiteElo "2124"]
[BlackElo "2129"]
[Result "1-0"]
[Round "01"]
[TimeControl "180+1"]
[Date "2022.01.18"]
[WhiteClock "0:00:26"]
[BlackClock "0:00:02"]

1. Nf3 {[%clk 0:03:00]}  Nf6 {[%clk 0:02:55]} 2. g3 {[%clk 0:03:01]}  g6 {[%clk 0:02:55]} 3. Bg2 {[%clk 0:03:02]}  Bg7 {[%clk 0:02:56]} 4. O-O {[%clk 0:03:02]}  O-O {[%clk 0:02:57]} 5. b3 {[%clk 0:03:03]}  d6 {[%clk 0:02:57]} 6. Bb2 {[%clk 0:03:03]}  Nc6 {[%clk 0:02:58]} 7. c4 {[%clk 0:03:03]}  e5 {[%clk 0:02:59]} 8. Nc3 {[%clk 0:03:01]}  Bf5 {[%clk 0:02:49]} 9. d3 {[%clk 0:02:58]}  e4 {[%clk 0:02:43]} 10. Nh4 {[%clk 0:02:44]}  exd3 {[%clk 0:02:37]} 11. Nxf5 {[%clk 0:02:43]}  dxe2 {[%clk 0:02:35]} 12. Nxe2 {[%clk 0:02:39]}  gxf5 {[%clk 0:02:35]} 13. Nf4 {[%clk 0:02:39]}  Re8 {[%clk 0:02:31]} 14. Re1 {[%clk 0:02:06]}  Qd7 {[%clk 0:02:25]} 15. Qc2 {[%clk 0:01:57]}  Rxe1+ {[%clk 0:01:52]} 16. Rxe1 {[%clk 0:01:58]}  Re8 {[%clk 0:01:51]} 17. Rxe8+ {[%clk 0:01:57]}  Nxe8 {[%clk 0:01:52]} 18. Bxg7 {[%clk 0:01:56]}  Nxg7 {[%clk 0:01:53]} 19. Nd5 {[%clk 0:01:53]}  Kh8 {[%clk 0:01:33]} 20. Qc3 {[%clk 0:01:47]}  Ne5 {[%clk 0:01:18]} 21. f4 {[%clk 0:01:47]}  Nc6 {[%clk 0:00:55]} 22. Kf2 {[%clk 0:01:34]}  Nd8 {[%clk 0:00:54]} 23. Bh3 {[%clk 0:01:24]}  c6 {[%clk 0:00:50]} 24. Ne3 {[%clk 0:01:24]}  Kg8 {[%clk 0:00:49]} 25. Qf6 {[%clk 0:01:21]}  Nde6 {[%clk 0:00:36]} 26. Bxf5 {[%clk 0:01:13]}  Qd8 {[%clk 0:00:34]} 27. Qc3 {[%clk 0:00:58]}  d5 {[%clk 0:00:30]} 28. cxd5 {[%clk 0:00:57]}  cxd5 {[%clk 0:00:31]} 29. Qe5 {[%clk 0:00:47]}  d4 {[%clk 0:00:12]} 30. Nd5 {[%clk 0:00:36]}  d3 {[%clk 0:00:05]} 31. Bxd3 {[%clk 0:00:34]}  Kh8 {[%clk 0:00:02]} 32. Qe4 {[%clk 0:00:26]} 1-0


[Site "https://www.chess.com"]

[Event "Titled Tuesday Blitz January 18 2022"]
[White "Harshavardhan G B"]
[Black "Golizadeh, Asghar"]
[WhiteFideId "25059009"]
[BlackFideId "12505269"]
[WhiteElo "1831"]
[BlackElo "2403"]
[Result "1-0"]
[Round "01"]
[TimeControl "180+1"]
[Date "2022.01.18"]
[WhiteClock "0:00:11"]
[BlackClock "0:00:02"]

1. d4 {[%clk 0:02:54]}  Nf6 {[%clk 0:02:59]} 2. c4 {[%clk 0:02:54]}  e6 {[%clk 0:03:00]} 3. Nf3 {[%clk 0:02:53]}  Bb4+ {[%clk 0:02:59]} 4. Nbd2 {[%clk 0:02:52]}  b6 {[%clk 0:02:58]} 5. e3 {[%clk 0:02:52]}  Bb7 {[%clk 0:02:58]} 6. Bd3 {[%clk 0:02:52]}  O-O {[%clk 0:02:57]} 7. O-O {[%clk 0:02:52]}  Bxd2 {[%clk 0:02:57]} 8. Nxd2 {[%clk 0:02:52]}  d6 {[%clk 0:02:56]} 9. e4 {[%clk 0:02:48]}  e5 {[%clk 0:02:48]} 10. d5 {[%clk 0:02:45]}  Nbd7 {[%clk 0:02:46]} 11. b3 {[%clk 0:02:43]}  Qe7 {[%clk 0:02:25]} 12. g3 {[%clk 0:02:40]}  c6 {[%clk 0:02:17]} 13. Bb2 {[%clk 0:02:39]}  cxd5 {[%clk 0:02:15]} 14. exd5 {[%clk 0:02:39]}  a5 {[%clk 0:02:12]} 15. Qe2 {[%clk 0:02:37]}  Rfe8 {[%clk 0:02:10]} 16. a3 {[%clk 0:02:33]}  Nc5 {[%clk 0:02:05]} 17. Bc2 {[%clk 0:02:32]}  Bc8 {[%clk 0:01:56]} 18. b4 {[%clk 0:02:27]}  Na6 {[%clk 0:01:41]} 19. f4 {[%clk 0:02:15]}  Bg4 {[%clk 0:01:24]} 20. Qf2 {[%clk 0:02:09]}  e4 {[%clk 0:01:19]} 21. Bxf6 {[%clk 0:02:00]}  Qxf6 {[%clk 0:01:19]} 22. Nxe4 {[%clk 0:02:00]}  Qh6 {[%clk 0:00:57]} 23. Rfe1 {[%clk 0:01:47]}  axb4 {[%clk 0:00:54]} 24. Qxb6 {[%clk 0:01:41]}  b3 {[%clk 0:00:31]} 25. Qxb3 {[%clk 0:01:34]}  Bf5 {[%clk 0:00:31]} 26. Nf2 {[%clk 0:01:26]}  Nc5 {[%clk 0:00:29]} 27. Qc3 {[%clk 0:01:25]}  Bxc2 {[%clk 0:00:20]} 28. Qxc2 {[%clk 0:01:23]}  Qf6 {[%clk 0:00:21]} 29. Rad1 {[%clk 0:01:15]}  Reb8 {[%clk 0:00:20]} 30. Ne4 {[%clk 0:01:12]}  Nxe4 {[%clk 0:00:19]} 31. Qxe4 {[%clk 0:01:13]}  g6 {[%clk 0:00:19]} 32. Rd3 {[%clk 0:01:07]}  Qb2 {[%clk 0:00:19]} 33. Qe2 {[%clk 0:01:03]}  Qb6+ {[%clk 0:00:18]} 34. Qf2 {[%clk 0:01:02]}  Qa6 {[%clk 0:00:18]} 35. Qd4 {[%clk 0:01:01]}  Rc8 {[%clk 0:00:16]} 36. Rc3 {[%clk 0:00:58]}  Qa4 {[%clk 0:00:13]} 37. Kg2 {[%clk 0:00:54]}  Ra5 {[%clk 0:00:13]} 38. Rce3 {[%clk 0:00:53]}  Raa8 {[%clk 0:00:09]} 39. Rc3 {[%clk 0:00:45]}  Ra5 {[%clk 0:00:09]} 40. Re2 {[%clk 0:00:46]}  Rac5 {[%clk 0:00:08]} 41. Rce3 {[%clk 0:00:45]}  Qa8 {[%clk 0:00:08]} 42. Qf6 {[%clk 0:00:32]}  Rxc4 {[%clk 0:00:08]} 43. Qxd6 {[%clk 0:00:33]}  Rd4 {[%clk 0:00:07]} 44. Re5 {[%clk 0:00:29]}  Rd8 {[%clk 0:00:07]} 45. Qf6 {[%clk 0:00:27]}  R4xd5 {[%clk 0:00:06]} 46. Kh3 {[%clk 0:00:15]}  Rxe5 {[%clk 0:00:06]} 47. Qxe5 {[%clk 0:00:16]}  Qc8+ {[%clk 0:00:06]} 48. Kg2 {[%clk 0:00:15]}  Qa8+ {[%clk 0:00:07]} 49. Kh3 {[%clk 0:00:15]}  Qxa3 {[%clk 0:00:07]} 50. Qf6 {[%clk 0:00:15]}  Qa8 {[%clk 0:00:07]} 51. Re7 {[%clk 0:00:14]}  Rf8 {[%clk 0:00:08]} 52. Kh4 {[%clk 0:00:14]}  Qh1 {[%clk 0:00:07]} 53. h3 {[%clk 0:00:14]}  Qf3 {[%clk 0:00:08]} 54. Qe5 {[%clk 0:00:13]}  Qa8 {[%clk 0:00:04]} 55. Qg5 {[%clk 0:00:13]}  Qd8 {[%clk 0:00:04]} 56. f5 {[%clk 0:00:13]}  f6 {[%clk 0:00:03]} 57. Qe3 {[%clk 0:00:13]}  g5+ {[%clk 0:00:02]} 58. Kg4 {[%clk 0:00:13]}  Kh8 {[%clk 0:00:03]} 59. h4 {[%clk 0:00:12]}  Qd1+ {[%clk 0:00:03]} 60. Qe2 {[%clk 0:00:12]}  Qd4+ {[%clk 0:00:03]} 61. Kh3 {[%clk 0:00:12]}  g4+ {[%clk 0:00:03]} 62. Qxg4 {[%clk 0:00:12]}  Qg1 {[%clk 0:00:03]} 63. Qf3 {[%clk 0:00:12]}  Qc5 {[%clk 0:00:01]} 64. Rd7 {[%clk 0:00:11]}  Rg8 {[%clk 0:00:01]} 65. Qh5 {[%clk 0:00:11]}  Qc8 {[%clk 0:00:02]} 66. Qxh7# {[%clk 0:00:11]} 1-0


[Site "https://www.chess.com"]